fUSD/lending_fUSD_20250926
["ID","MTS","AMOUNT","RATE_DAILY","PERIOD"]
[387785336,1758866086275,400.5,0.00030137,120]
[387785337,1758866169627,400.1,0.00030137,120]
[387785338,1758866221041,150.0,0.00018,2]
[387785339,1758866263937,-689.0,0.00034222,120]
[387785340,1758866263960,-3323.68552041,0.00034222,30]
[387785341,1758866263984,-478.01255201,0.00034222,30]
[387785342,1758866264008,-283090.28036283,0.00034222,30]
[387785343,1758866264031,-189.24804303,0.00034222,30]
[387785344,1758866264053,-164.07855416,0.00034222,120]
[387785345,1758866264077,-818.87406982,0.00034222,30]
[387785346,1758866264103,-2230.82661737,0.00034222,30]
[387785347,1758866264127,-302.56533071,0.00034222,30]
[387785348,1758866264150,-159.84548762,0.00034222,120]
[387785349,1758866264174,-191.39754698,0.00034222,30]
[387785350,1758866264197,-3214.06952946,0.00034222,30]
[387785351,1758866264218,-276.49624952,0.00034222,120]
[387785352,1758866264240,-1754.2906748,0.00034222,120]
[387785353,1758866264261,-258.85951385,0.00034222,30]
[387785354,1758866264285,-379.04023503,0.00034222,30]
[387785355,1758866264309,-214.50106868,0.00034222,30]
[387785356,1758866264334,-235.45770621,0.00034222,30]
[387785357,1758866264358,-205.16294497,0.00034222,30]
[387785358,1758866264381,-2810.13883499,0.00034222,30]
[387785359,1758866264406,-2428.6681234,0.00034222,30]
[387785360,1758866264432,-205.74744037,0.00034222,30]
[387785361,1758866264457,-756.0,0.00034222,120]
[387785362,1758866264481,-851.8270198,0.00034222,120]
[387785363,1758866264506,-504.73085779,0.00034222,120]
[387785364,1758866264529,-450.17767842,0.00034222,120]
[387785365,1758866264553,-875.72908921,0.00034222,120]
[387785366,1758866264576,-220.71471591,0.00034222,60]
[387785367,1758866264600,-190.86394899,0.00034222,120]
[387785368,1758866264625,-157.71956227,0.00034222,30]
[387785369,1758866264648,-303.39000353,0.00034222,120]
[387785370,1758866264672,-1638.34665681,0.00034222,120]
[387785371,1758866264695,-325.42261832,0.00034222,90]
[387785372,1758866264719,-649.96894333,0.00034222,30]
[387785373,1758866264744,-2038.02975032,0.00034222,30]
[387785374,1758866264768,-620.88036572,0.00034222,30]
[387785375,1758866264792,-168.26655505,0.00034222,30]
[387785376,1758866264815,-1007.06902367,0.00034222,120]
[387785377,1758866265010,-2315.70345573,0.00034222,30]
[387785378,1758866265035,-8000.0,0.00034222,60]
[387785379,1758866265059,-263.28864002,0.00034222,120]
[387785380,1758866265084,-268.9,0.00034222,30]
[387785381,1758866265109,-536.6250431,0.00034222,30]
[387785382,1758866265133,-215.10268251,0.00034222,30]
[387785383,1758866265158,-290.0,0.00034222,120]
[387785384,1758866265186,-4673730.99698328,0.00034222,30]
[387785385,1758866270012,-5000000.0,0.00034222,30]
[387785386,1758866277300,-50000000.0,0.00034222,30]
[387785387,1758866519808,1355.29,0.00030137,120]
[387788873,1758866754737,150.0,0.00017,2]
[387788874,1758866755149,150.0,0.0001818,2]
[387788875,1758866757443,347.76692628,0.0001818,2]
[387788876,1758866757880,246.95863198,0.0001818,2]
[387788877,1758866758824,173.88346314,0.0001818,2]
[387788878,1758866831496,155.0,0.00030136,120]
[387788879,1758866977716,2554.46371637,0.000185,2]
[387788888,1758867032275,-150.0,0.00018921,7]
[387788889,1758867032285,-229.26,0.00018924,2]
[387788890,1758867032295,-151.07,0.00018925,2]
[387788891,1758867032304,-304.567528,0.00019,2]
[387788892,1758867032314,-0.9428382,0.00019065,2]
[387788914,1758867032748,-1999.0571618,0.00019065,2]
[387788916,1758867032758,-150.0,0.0001937,2]
[387788918,1758867032769,-39.3428382,0.00019613,2]
[387788940,1758867038142,-128.6571618,0.00019613,2]
[387788941,1758867038153,-396.2678382,0.000197,2]
[387789115,1758867040209,-637.43360653,0.000197,2]
[387789117,1758867040218,-473.08,0.000197,2]
[387789119,1758867040228,-318.27319,0.0001979,2]
[387789121,1758867040239,-473.08,0.000198,2]
[387789123,1758867040248,-1200.0,0.00019838,2]
[387789125,1758867040257,-204.0,0.00019839,2]
[387789127,1758867040267,-300.0,0.00019839,2]
[387789129,1758867040277,-292.0,0.00019839,2]
[387789131,1758867040287,-200.0,0.0001984,2]
[387789133,1758867040296,-750.82,0.0001984,2]
[387789135,1758867040305,-289.47,0.0001984,2]
[387789137,1758867040316,-199.0,0.0001984,2]
[387789139,1758867040325,-1935.19777547,0.0001985,2]
[387789141,1758867040337,-2243.80222453,0.0001985,2]
[387789143,1758867040348,-6228.0,0.0001985,2]
[387789145,1758867040358,-18905.0,0.0001985,2]
[387789147,1758867040368,-728.0,0.0001985,2]
[387789149,1758867040378,-168.0,0.00019855,2]
[387789151,1758867040387,-179.11803518,0.0001987,2]
[387789153,1758867040397,-4128.66160643,0.0001988,2]
[387789155,1758867040407,-151.27734863,0.00019883,2]
[387789157,1758867040417,-151.0,0.00019883,2]
[387789159,1758867040427,-151.0,0.00019883,2]
[387789161,1758867040443,-1000.0,0.00019895,2]
[387789163,1758867040453,-1322.6379,0.00019895,2]
[387789165,1758867040463,-155.4918,0.00019895,2]
[387789167,1758867040472,-1756.82225276,0.00019899,2]
[387789169,1758867040481,-1756.82225276,0.00019899,2]
[387789171,1758867040491,-1756.82225276,0.00019899,2]
[387789172,1758867040500,-1756.82225276,0.00019899,2]
[387789174,1758867040510,-1756.82225276,0.00019899,2]
[387789176,1758867040520,-1756.82225276,0.000199,2]
[387789178,1758867040529,-1756.82225276,0.000199,2]
[387789180,1758867040542,-2003.66,0.000199,2]
[387789182,1758867040553,-961.09284672,0.000199,2]
[387789185,1758867040563,-1218.7807436,0.000199,2]
[387789187,1758867040572,-179.11803518,0.00019906,2]
[387789189,1758867040584,-1996.87,0.00019924,2]
[387789191,1758867040594,-343.60929806,0.00019931,2]
[387789193,1758867040603,-482.82065812,0.00019931,2]
[387789195,1758867040613,-500.0,0.00019931,2]
[387789197,1758867040625,-173.88621385,0.00019931,2]
[387789199,1758867040635,-500.0,0.00019931,2]
[387789201,1758867040644,-210.49509144,0.00019931,2]
[387789203,1758867040653,-500.0,0.00019932,2]
[387789205,1758867040662,-500.0,0.00019932,2]
[387789207,1758867040670,-500.0,0.00019932,2]
[387789209,1758867040679,-500.0,0.00019932,2]
[387789211,1758867040688,-501.0,0.00019932,2]
[387789213,1758867040698,-168.0,0.00019933,2]
[387789214,1758867040707,-179.11803518,0.00019935,2]
[387789217,1758867040716,-179.11803518,0.00019955,2]
[387789218,1758867040726,-179.11803518,0.00019964,2]
[387789221,1758867040736,-14802.1824053,0.00019965,2]
[387789222,1758867040746,-179.11803518,0.00019968,2]
[387789224,1758867040756,-500.0,0.00019973,2]
[387789226,1758867040765,-179.11803518,0.00019981,2]
[387789228,1758867040775,-121.35129709,0.00019994,2]
[387789230,1758867040784,-881.30032251,0.00019994,2]
[387789232,1758867040793,-318.27318,0.00019994,2]
[387789234,1758867040802,-318.27319,0.00019994,2]
[387789236,1758867040812,-318.27319,0.00019994,2]
[387789238,1758867040821,-318.27318,0.00019994,2]
[387789240,1758867040830,-318.27319,0.00019994,2]
[387789242,1758867040840,-574624.75975496,0.00019995,2]
[387789244,1758867040849,-1000.0,0.00019999,2]
[387789246,1758867040859,-150.0,0.00019999,2]
[387789248,1758867040869,-150.79746748,0.00019999,2]
[387789250,1758867040878,-500.0,0.00019999,2]
[387789252,1758867040887,-150.0,0.00019999,2]
[387789254,1758867040897,-150.0,0.00019999,2]
[387789256,1758867040907,-150.0,0.00019999,2]
[387789258,1758867040917,-176.70139772,0.00019999,2]
[387789260,1758867040929,-203.52466395,0.00019999,2]
[387789262,1758867040939,-150.0,0.00019999,2]
[387789264,1758867040949,-207.08797017,0.00019999,2]
[387789266,1758867040959,-260.25553147,0.00019999,2]
[387789268,1758867040968,-500.0,0.00019999,2]
[387789270,1758867040978,-150.0,0.00019999,2]
[387789272,1758867040987,-204.60048309,0.00019999,2]
[387789274,1758867040997,-500.0,0.00019999,2]
[387789276,1758867041006,-150.0,0.00019999,2]
[387789278,1758867041016,-4492.87,0.00019999,2]
[387789280,1758867041026,-150.0,0.00019999,2]
[387789282,1758867041035,-5000.0,0.00019999,2]
[387789284,1758867041045,-1001.0308,0.00019999,2]
[387789286,1758867041054,-150.0,0.00019999,2]
[387789288,1758867041063,-150.0,0.00019999,2]
[387789290,1758867041073,-500.0,0.00019999,2]
[387789292,1758867041082,-500.0,0.00019999,2]
[387789294,1758867041092,-3284.0,0.00019999,2]
[387789296,1758867041101,-150.0,0.00019999,2]
[387789298,1758867041110,-500.0,0.00019999,2]
[387789300,1758867041119,-150.60245345,0.00019999,2]
[387789302,1758867041129,-150.0,0.00019999,2]
[387789303,1758867041139,-150.0,0.00019999,2]
[387789304,1758867041149,-1000.0,0.00019999,2]
[387789305,1758867041158,-150.0,0.00019999,2]
[387789306,1758867041168,-150.0,0.00019999,2]
[387789307,1758867041177,-500.0,0.00019999,2]
[387789308,1758867041187,-150.0,0.00019999,2]
[387789309,1758867041196,-150.0,0.00019999,2]
[387789310,1758867041205,-150.0,0.00019999,2]
[387789311,1758867041215,-500.0,0.00019999,2]
[387789313,1758867041224,-500.0,0.00019999,2]
[387789314,1758867041234,-49716.0253131,0.0002,2]
[387789316,1758867041244,-1617.0,0.0002,2]
[387789318,1758867041254,-179.95207213,0.0002,2]
[387789320,1758867041263,-4000.0,0.0002,4]
[387789322,1758867041273,-38735.05963625,0.0002,5]
[387789324,1758867041283,-124438.16671405,0.0002,2]
[387789332,1758867041351,-609.54600808,0.0002,2]
[387789337,1758867041387,-5023.42030545,0.0002,2]
[387789472,1758867043275,-63729.78849745,0.0002,2]
[387789473,1758867043389,-519.51310804,0.0002,2]
[387789474,1758867043504,-8594.69217665,0.0002,2]
[387789475,1758867043515,-438.45497392,0.0002,2]
[387789480,1758867046225,-768.23158559,0.000199,2]
[387789481,1758867046237,-988.59066717,0.000199,2]
[387789482,1758867046247,-3837.99110713,0.0002,2]
[387789483,1758867046258,-25999.9998,0.0002,2]
[387789484,1758867046270,-93115.44003332,0.0002,2]
[387789485,1758867046282,-44270.0,0.0002,2]
[387789486,1758867046297,-4189.84189386,0.0002,2]
[387789487,1758867046503,-640.0,0.0002,2]
[387789488,1758867046515,-12003.392439,0.0002,2]
[387789498,1758867127283,-168.20263895,0.00019,2]
[387789499,1758867285822,150.0,0.000179,2]
[387789500,1758867467034,400.38277051,0.00018,2]
[387789501,1758867656376,175.15,9.536e-05,2]
[387789502,1758867813853,150.0,0.000169,2]
[387789503,1758867814206,150.0,0.0001808,2]
[387789504,1758867977691,155.77,0.00016712,2]
[387789505,1758868039633,789.41847637,0.0001305,2]
[387789506,1758868095276,369.19571865,0.000135,2]
[387789509,1758868117614,264.70631787,0.000107,2]
[387789510,1758868120346,250.0,0.00015,2]
[387789511,1758868121392,300.0,0.00017,2]
[387789512,1758868126888,160.85867287,0.00012,2]
[387789523,1758868231608,-150.0,0.00018764,7]
[387789524,1758868231618,-151.07,0.00018892,2]
[387789525,1758868231628,-275.49891685,0.00018932,2]
[387789526,1758868231637,-380.88,0.00018973,2]
[387789527,1758868231646,-292.48499991,0.00018981,2]
[387789528,1758868231656,-676.27321132,0.0001899,2]
[387789529,1758868231665,-3016.5046226,0.00019,2]
[387789530,1758868231675,-203.85182186,0.00019,2]
[387789531,1758868231684,-250.0,0.00019069,2]
[387789532,1758868231693,-1200.0,0.00019088,2]
[387789533,1758868231703,-300.0,0.00019088,2]
[387789534,1758868231712,-200.0,0.00019089,2]
[387789535,1758868231722,-19999.99,0.00019089,2]
[387789536,1758868231731,-3529.08,0.00019193,2]
[387789537,1758868231741,-1250.48850701,0.0001925,2]
[387789538,1758868231750,-1229.0,0.0001925,2]
[387789539,1758868231759,-1229.0,0.0001925,2]
[387789540,1758868231768,-1229.0,0.0001925,2]
[387789541,1758868231777,-150.0,0.0001927,2]
[387789542,1758868231787,-460.97,0.000193,2]
[387789543,1758868231796,-1427.94,0.000193,2]
[387789544,1758868231805,-184.0,0.00019302,2]
[387789545,1758868231814,-1623.58,0.000194,2]
[387789546,1758868231823,-1109.17,0.00019726,2]
[387789547,1758868231832,-264.0,0.00019774,2]
[387789548,1758868231841,-482.12,0.000198,2]
[387789549,1758868231851,-9552.16786547,0.00019828,2]
[387789550,1758868231860,-200.0,0.0001984,2]
[387789551,1758868231870,-6524.8712132,0.00019883,2]
[387789552,1758868231879,-764.7207,0.00019895,2]
[387789553,1758868231888,-657.44851949,0.00019899,2]
[387789554,1758868231897,-657.44851948,0.00019899,2]
[387789555,1758868231907,-657.44851948,0.00019899,2]
[387789556,1758868231915,-657.44851948,0.00019899,2]
[387789557,1758868231925,-1627.19,0.000199,2]
[387789558,1758868231934,-179.03,0.000199,2]
[387789559,1758868231943,-3513.64450552,0.000199,2]
[387789560,1758868231952,-640.72856448,0.000199,2]
[387789561,1758868231962,-337.97446068,0.00019937,2]
[387789562,1758868231972,-1597.496,0.00019938,2]
[387789563,1758868231981,-500.0,0.00019973,2]
[387789564,1758868231995,-500.0,0.00019976,2]
[387789565,1758868232004,-500.0,0.00019976,2]
[387789566,1758868232013,-500.0,0.00019976,2]
[387789567,1758868232023,-500.0,0.00019976,2]
[387789568,1758868232033,-500.0,0.00019976,2]
[387789569,1758868232043,-500.0,0.00019976,2]
[387789570,1758868232052,-500.0,0.00019976,2]
[387789571,1758868232062,-500.0,0.00019976,2]
[387789572,1758868232072,-500.0,0.00019976,2]
[387789573,1758868232082,-500.0,0.00019976,2]
[387789574,1758868232091,-500.0,0.00019976,2]
[387789575,1758868232100,-322.6107,0.00019988,2]
[387789576,1758868232109,-151.0,0.00019988,2]
[387789577,1758868232118,-151.0,0.00019988,2]
[387789578,1758868232128,-151.0,0.00019988,2]
[387789579,1758868232137,-151.0,0.00019988,2]
[387789580,1758868232146,-151.0,0.00019988,2]
[387789581,1758868232157,-151.0,0.00019988,2]
[387789582,1758868232166,-5027.16,0.00019988,2]
[387789583,1758868232176,-601.3376128,0.00019988,2]
[387789584,1758868232185,-500.0,0.00019988,2]
[387789585,1758868232194,-500.0,0.00019988,2]
[387789586,1758868232203,-500.0,0.00019988,2]
[387789587,1758868232213,-500.0,0.00019988,2]
[387789588,1758868232223,-500.0,0.00019988,2]
[387789589,1758868232232,-500.0,0.00019988,2]
[387789590,1758868232242,-500.0,0.00019988,2]
[387789591,1758868232251,-500.0,0.00019988,2]
[387789592,1758868232260,-500.0,0.00019988,2]
[387789593,1758868232270,-500.0,0.00019988,2]
[387789594,1758868232280,-200.0,0.00019988,2]
[387789595,1758868232290,-200.0,0.00019988,2]
[387789596,1758868232300,-515.25587124,0.00019988,2]
[387789597,1758868232309,-200.0,0.00019988,2]
[387789598,1758868232319,-200.0,0.00019988,2]
[387789599,1758868232328,-93.6555287,0.00019988,2]
[387789600,1758868232493,-106.3444713,0.00019988,2]
[387789601,1758868232502,-250.0,0.00019988,2]
[387789602,1758868232511,-150.0,0.00019988,2]
[387789603,1758868232520,-150.0,0.00019988,2]
[387789604,1758868232530,-500.0,0.00019988,2]
[387789605,1758868232539,-500.0,0.00019988,2]
[387789606,1758868232548,-3420.0,0.00019988,2]
[387789607,1758868232688,-881.30032251,0.00019994,2]
[387789608,1758868232698,-16928.83923885,0.00019995,2]
[387789609,1758868232721,-293.84894175,0.00019995,2]
[387789614,1758868237390,-334.01523776,0.00019899,2]
[387789629,1758868243052,-132.93361195,0.00019899,2]
[387789630,1758868243072,-33.05115029,0.00019899,2]
[387789631,1758868243084,-240.52650864,0.00019899,2]
[387789632,1758868243093,-347.34656401,0.00019899,2]
[387789633,1758868243102,-657.44851948,0.000199,2]
[387789634,1758868243111,-657.44851948,0.000199,2]
[387789635,1758868243121,-150.0,0.00019988,2]
[387789636,1758868243130,-150.0,0.00019988,2]
[387789638,1758868243140,-363.51025586,0.00019995,2]
[387789665,1758868243727,-22174.43629532,0.00019995,2]
[387789666,1758868244290,-5649.77772166,0.00019995,2]
[387789667,1758868244327,-771561.73346245,0.00019995,2]
[387789668,1758868244336,-2591.9702199,0.00019999,2]
[387789669,1758868244346,-150.0,0.00019999,2]
[387789670,1758868244355,-207.08797017,0.00019999,2]
[387789671,1758868244365,-260.25553147,0.00019999,2]
[387789672,1758868244374,-500.0,0.00019999,2]
[387789673,1758868244383,-500.0,0.00019999,2]
[387789674,1758868244392,-500.0,0.00019999,2]
[387789675,1758868244401,-500.0,0.00019999,2]
[387789676,1758868244410,-151.07253869,0.00019999,2]
[387789677,1758868244420,-150.0,0.00019999,2]
[387789678,1758868244429,-4492.87,0.00019999,2]
[387789679,1758868244439,-205.04286221,0.00019999,2]
[387789680,1758868244449,-150.60245345,0.00019999,2]
[387789681,1758868244458,-150.0,0.00019999,2]
[387789682,1758868244467,-150.0,0.00019999,2]
[387789683,1758868244477,-150.0,0.00019999,2]
[387789684,1758868244486,-150.0,0.00019999,2]
[387789685,1758868244495,-500.0,0.00019999,2]
[387789686,1758868244505,-150.0,0.00019999,2]
[387789687,1758868244514,-500.0,0.00019999,2]
[387789688,1758868244523,-150.0,0.00019999,2]
[387789689,1758868244533,-153.13753536,0.00019999,2]
[387789690,1758868244542,-500.0,0.00019999,2]
[387789691,1758868244552,-500.0,0.00019999,2]
[387789692,1758868244562,-150.0,0.00019999,2]
[387789693,1758868244571,-150.79746748,0.00019999,2]
[387789694,1758868244580,-500.0,0.00019999,2]
[387789695,1758868244589,-150.0,0.00019999,2]
[387789696,1758868244599,-150.0,0.00019999,2]
[387789697,1758868244608,-150.0,0.00019999,2]
[387789698,1758868244618,-176.70139772,0.00019999,2]
[387789699,1758868244627,-203.52466395,0.00019999,2]
[387789700,1758868244637,-152.35426519,0.00019999,2]
[387789701,1758868244646,-150.0,0.00019999,2]
[387789702,1758868244655,-1000.0,0.00019999,2]
[387789703,1758868244665,-1308.341,0.0002,2]
[387789704,1758868244675,-603.0,0.0002,2]
[387789705,1758868244684,-570.398,0.0002,2]
[387789706,1758868244693,-1583.0,0.0002,2]
[387789707,1758868244704,-816.0,0.0002,2]
[387789708,1758868244713,-900.458,0.0002,2]
[387789709,1758868244723,-1181.13,0.0002,2]
[387789710,1758868244732,-4232.0,0.0002,2]
[387789711,1758868244741,-1263.0,0.0002,2]
[387789712,1758868244751,-2043.0,0.0002,2]
[387789713,1758868244760,-4179.0,0.0002,2]
[387789714,1758868244769,-3396.0,0.0002,2]
[387789715,1758868244778,-2377.0,0.0002,2]
[387789716,1758868244787,-8556.09247456,0.0002,2]
[387789717,1758868244799,-2746.4999999,0.0002,2]
[387789718,1758868244830,-3759.36337856,0.0002,2]
[387789719,1758868244841,-2777.18371765,0.0002,2]
[387789720,1758868244851,-1596.22929585,0.0002,2]
[387789735,1758868246039,-236.58212248,0.00019899,2]
[387789737,1758868246049,-14.19219301,0.00019988,2]
[387789740,1758868246836,-657.44851948,0.000199,2]
[387789741,1758868246846,-916.80780699,0.00019988,2]
[387789742,1758868246856,-5825.74364353,0.0002,2]
[387789743,1758868246867,-402.25635647,0.0002,2]
[387789744,1758868246876,-5495.74363553,0.0002,2]
[387789746,1758868340600,150.0,0.000178,2]
[387789747,1758868593085,255.31,9.436e-05,2]
[387789748,1758868593742,255.31,9.932e-05,2]
[387789749,1758868593826,255.31,0.00010429,2]
[387789750,1758868594573,255.31,0.00010925,2]
[387789751,1758868594636,255.31,0.00011422,2]
[387789752,1758868594701,255.31,0.00011919,2]
[387789753,1758868594787,255.31,0.00012415,2]
[387789754,1758868595013,255.31,0.00012912,2]
[387789755,1758868595207,255.31,0.00013408,2]
[387789756,1758868595428,255.31,0.00013905,2]
[387789757,1758868595627,255.31,0.00014402,2]
[387789758,1758868595821,255.31,0.00014898,2]
[387789759,1758868596035,255.31,0.00015395,2]
[387789760,1758868596263,255.31,0.00015891,2]
[387789761,1758868596453,255.31,0.00016388,2]
[387789762,1758868596721,255.31,0.00016885,2]
[387789763,1758868596933,255.31,0.00017381,2]
[387789764,1758868597135,255.31,0.00017878,2]
[387789765,1758868597355,255.31,0.00018374,2]
[387789766,1758868713329,731.44453493,0.00018,2]
[387789767,1758868748928,1327.11,0.00030136,120]
[387789768,1758868749163,1327.11,0.00030136,120]
[387789769,1758868749388,1327.11,0.00030136,120]
[387789770,1758868749677,1327.11,0.00030136,120]
[387789771,1758868749877,1327.11,0.00030136,120]
[387789772,1758868752787,1327.11,0.00030136,120]
[387789773,1758868752892,1327.11,0.00030136,120]
[387789774,1758868753008,1327.11,0.00030136,120]
[387789775,1758868753113,1327.11,0.00030136,120]
[387789776,1758868753277,1327.11,0.00030136,120]
[387789777,1758868753766,1327.11,0.00030136,120]
[387789778,1758868753929,1327.11,0.00030136,120]
[387789779,1758868754164,1327.11,0.00030136,120]
[387789780,1758868754407,1327.11,0.00030136,120]
[387789781,1758868754650,1327.11,0.00030136,120]
[387789782,1758868754896,1327.11,0.00030136,120]
[387789783,1758868755144,1327.11,0.00030136,120]
[387789784,1758868755425,1327.11,0.00030136,120]
[387789785,1758868755641,1327.11,0.00030136,120]
[387789786,1758868755905,1327.11,0.00030136,120]
[387789787,1758868756117,1327.11,0.00030136,120]
[387789788,1758868758242,1327.11,0.00030136,120]
[387789789,1758868758522,1327.11,0.00030136,120]
[387789790,1758868758756,1327.34796879,0.00030136,120]
[387789792,1758868820781,-15749.12893428,0.00034415,20]
[387789793,1758868820818,-4984250.87106572,0.00034415,30]
[387789796,1758868852161,501.35812165,0.00030136,120]
[387789797,1758868860521,500.0,0.00030136,120]
[387789798,1758868860836,500.0,0.00030136,120]
[387789799,1758868860978,500.0,0.00030136,120]
[387789800,1758868861159,500.0,0.00030136,120]
[387789801,1758868861460,500.0,0.00030136,120]
[387789802,1758868861662,500.0,0.00030136,120]
[387789803,1758868862006,500.0,0.00030136,120]
[387789804,1758868862190,500.0,0.00030136,120]
[387789805,1758868862365,500.0,0.00030136,120]
[387789806,1758868862638,500.0,0.00030136,120]
[387789807,1758868863056,500.0,0.00030136,120]
[387789808,1758868863292,500.0,0.00030136,120]
[387789809,1758868863496,500.0,0.00030136,120]
[387789810,1758868863724,500.0,0.00030136,120]
[387789811,1758868864172,571.29740735,0.00030136,120]
[387789812,1758868867174,150.0,0.000168,2]
[387789813,1758868867482,150.0,0.0001798,2]
[387789814,1758868893103,500.0,0.00030136,120]
[387789815,1758868893266,500.0,0.00030136,120]
[387789816,1758868893442,526.51419266,0.00030136,120]
[387789817,1758868935937,500.0,0.00030136,120]
[387789818,1758868936240,500.0,0.00030136,120]
[387789819,1758868936510,500.0,0.00030136,120]
[387789820,1758868936695,500.0,0.00030136,120]
[387789821,1758868936746,500.0,0.00030136,120]
[387789822,1758868937174,500.0,0.00030136,120]
[387789823,1758868937316,500.0,0.00030136,120]
[387789824,1758868937391,500.0,0.00030136,120]
[387789825,1758868937456,500.0,0.00030136,120]
[387789826,1758868937586,500.0,0.00030136,120]
[387789827,1758868937692,500.0,0.00030136,120]
[387789828,1758868937855,500.0,0.00030136,120]
[387789829,1758868938074,500.0,0.00030136,120]
[387789830,1758868938451,500.0,0.00030136,120]
[387789831,1758868938680,500.0,0.00030136,120]
[387789832,1758868938836,500.0,0.00030136,120]
[387789833,1758868938869,500.0,0.00030136,120]
[387789834,1758868939087,500.0,0.00030136,120]
[387789835,1758868939118,500.0,0.00030136,120]
[387789836,1758868939328,502.82227517,0.00030136,120]
[387789837,1758868939357,500.0,0.00030136,120]
[387789838,1758868939647,500.0,0.00030136,120]
[387789839,1758868939897,500.0,0.00030136,120]
[387789840,1758868940122,500.0,0.00030136,120]
[387789841,1758868940366,500.0,0.00030136,120]
[387789842,1758868940622,500.0,0.00030136,120]
[387789843,1758868940962,500.0,0.00030136,120]
[387789844,1758868941358,500.0,0.00030136,120]
[387789845,1758868941571,500.0,0.00030136,120]
[387789846,1758868941743,219.06853524,0.00030136,120]
[387789847,1758868950210,337.30444034,0.0003,120]
[387789848,1758868956548,171.56,0.00015048,2]
[387789851,1758868974726,516.73157096,0.00030136,120]
[387789852,1758869046969,505.91906914,0.00030136,120]
[387789853,1758869054788,242.43933171,0.00015048,2]
[387789854,1758869115829,150.0,0.00018,2]
[387789855,1758869115897,150.0,0.00018,2]
[387789856,1758869115999,150.0,0.00018,2]
[387789857,1758869116465,500.0,0.00030136,120]
[387789858,1758869116625,500.0,0.00030136,120]
[387789859,1758869116888,500.0,0.00030136,120]
[387789860,1758869117185,500.0,0.00030136,120]
[387789861,1758869117444,500.0,0.00030136,120]
[387789862,1758869117674,500.0,0.00030136,120]
[387789863,1758869118109,500.0,0.00030136,120]
[387789864,1758869118269,500.0,0.00030136,120]
[387789865,1758869118644,500.0,0.00030136,120]
[387789866,1758869118986,500.0,0.00030136,120]
[387789867,1758869119160,500.0,0.00030136,120]
[387789868,1758869119560,500.0,0.00030136,120]
[387789869,1758869119758,500.0,0.00030136,120]
[387789870,1758869119933,500.0,0.00030136,120]
[387789871,1758869120162,500.0,0.00030136,120]
[387789872,1758869120548,500.0,0.00030136,120]
[387789873,1758869120721,410.56084296,0.00030136,120]
[387789874,1758869122010,150.0,0.00018,2]
[387789875,1758869124916,150.0,0.00018,2]
[387789876,1758869124946,150.0,0.00018,2]
[387789877,1758869125429,150.0,0.00018,2]
[387789878,1758869127328,150.53228834,0.00018,2]
[387789879,1758869135872,153.51905124,0.00018,2]
[387789880,1758869135938,153.55055859,0.00018,2]
[387789881,1758869136026,209.50179847,0.00018,2]
[387789882,1758869136342,150.0,0.00018,2]